bitfinex-derivatives/quotes_ETHF0:USTF0_20250520
["timestamp","ask_amount","ask_price","bid_price","bid_amount"]
[1747748711068,0.80855,2472.9,2472.7,4.21823575]
[1747748711270,0.80855,2472.9,2472.8,3.00473575]
[1747748711472,0.80855,2472.9,2472.8,2.19619575]
[1747748711665,0.80855,2472.9,2472.8,5.02670575]
[1747748712271,0.8085,2473.1,2473.0,0.80847]
[1747748712562,0.80841,2473.3,2473.2,0.80839]
[1747748712764,0.80841,2473.3,2473.2,11.56162273]
[1747748712964,0.80841,2473.3,2473.2,13.58325273]
[1747748713172,0.80838,2473.4,2473.3,0.80836]
[1747748713471,0.80838,2473.4,2473.3,3.10819273]
[1747748713664,0.80838,2473.4,2473.3,5.12974273]
[1747748713860,2.82976705,2473.4,2473.3,0.30923273]
[1747748714060,2.82976705,2473.4,2473.3,10.75323273]
[1747748714773,2.82976705,2473.4,2473.3,11.07669119]
[1747748715072,2.82976705,2473.4,2473.3,0.63269119]
[1747748716073,2.82976705,2473.4,2473.3,0.63327404]
[1747748716868,2.82976705,2473.4,2473.3,0.63345926]
[1747748717674,0.80846,2473.1,2473.0,3.2078]
[1747748717867,0.80846,2473.1,2473.0,13.6508]
[1747748718073,0.80846,2473.1,2473.0,15.672595]
[1747748718268,0.80846,2473.1,2473.0,17.727795]
[1747748718474,0.80846,2473.1,2473.0,18.00927691]
[1747748718678,6.03764705,2473.1,2473.0,0.28148191]
[1747748718972,2.82984705,2473.1,2473.0,0.28148191]
[1747748719373,2.02138705,2473.1,2473.0,2.30327691]
[1747748719679,3.2078,2473.4,2473.3,0.80839]
[1747748719880,0.80834,2473.5,2473.4,0.80836]
[1747748720074,2.82970705,2473.6,2473.5,0.80831]
[1747748720271,0.80821,2473.9,2473.8,0.80821]
[1747748720578,1.95905632,2474.0,2473.5,3.2078]
[1747748720884,0.80819,2473.9,2473.8,10.443]
[1747748721179,2.82957705,2473.9,2473.8,10.443]
[1747748721476,4.87207705,2473.9,2473.8,10.443]
[1747748721676,2.85069,2473.9,2473.8,10.443]
[1747748721878,2.0425,2473.9,2473.8,11.25122]
[1747748722067,2.02138705,2473.9,2473.8,11.25122]
[1747748722269,0.00605632,2474.0,2473.8,18.6508]
[1747748722477,0.00605632,2474.0,2473.9,0.80819]
[1747748722974,0.00605632,2474.0,2473.9,23.20819]
[1747748723373,0.00605632,2474.0,2473.9,30.29409]
[1747748723888,0.80808,2474.3,2474.2,0.8081]
[1747748724179,0.661354,2474.5,2474.4,0.80803]
[1747748724374,0.661354,2474.5,2474.2,13.6508]
[1747748724375,0.80806,2474.3,2474.2,13.6508]
[1747748724580,2.0064,2474.4,2474.2,13.6508]
[1747748724778,2.82944705,2474.3,2474.2,14.45889]
[1747748724986,2.02138705,2474.3,2474.2,13.6508]
[1747748725171,0.80806,2474.3,2474.2,3.2078]
[1747748725369,0.80809,2474.2,2474.1,0.00605632]
[1747748725678,4.83586705,2474.3,2474.2,0.80809]
[1747748725879,4.02778705,2474.3,2474.2,0.80809]
[1747748726178,0.80809,2474.2,2474.1,11.54074491]
[1747748726376,0.80809,2474.2,2474.1,10.73263491]
[1747748726583,4.83587705,2474.2,2474.1,10.73263491]
[1747748726885,4.02778705,2474.2,2474.1,10.73263491]
[1747748727074,4.83587705,2474.2,2474.1,10.73263491]
[1747748727275,4.83587705,2474.2,2474.1,12.75352991]
[1747748727673,4.83587705,2474.2,2474.1,10.73263491]
[1747748727976,4.83587705,2474.2,2474.1,10.44805632]
[1747748728171,3.2078,2474.4,2474.1,2.83508132]
[1747748728385,0.80819,2473.9,2473.8,0.28457859]
[1747748728576,4.85047205,2473.9,2473.8,0.28457859]
[1747748728883,4.04228205,2473.9,2473.8,2.30571859]
[1747748729082,4.85047205,2473.9,2473.8,2.30571859]
[1747748729478,4.85047205,2473.9,2473.8,12.74671859]
[1747748729776,4.85047205,2473.9,2473.8,12.7618689]
[1747748730678,4.85047205,2473.9,2473.8,0.2997289]
[1747748731186,0.80826,2473.7,2473.6,10.441]
[1747748731484,4.85054205,2473.7,2473.6,10.74076617]
[1747748732083,4.04228205,2473.7,2473.6,12.76207117]
[1747748732587,2.0516,2474.0,2473.9,0.80819]
[1747748732783,6.09388205,2474.0,2473.9,1.10795617]
[1747748732983,6.09388205,2474.0,2473.9,1.10797184]
[1747748733182,2.85976,2474.0,2473.9,1.10797184]
[1747748733388,2.85976,2474.0,2473.9,0.29978184]
[1747748733578,6.90204205,2474.0,2473.9,0.29978184]
[1747748733880,2.85976,2474.0,2473.9,1.10797184]
[1747748734286,6.09388205,2474.0,2473.9,1.10797184]
[1747748734484,4.85044205,2474.0,2473.9,1.4313057]
[1747748734691,0.661354,2474.2,2473.9,7.64358657]
[1747748734986,0.661354,2474.2,2474.1,0.80813]
[1747748735174,0.661354,2474.2,2474.1,14.75669561]
[1747748735376,0.661354,2474.2,2474.1,33.94889561]
[1747748735576,4.70363605,2474.2,2474.1,33.94889561]
[1747748735881,0.661354,2474.2,2474.1,33.94889561]
[1747748736081,0.661354,2474.2,2474.1,23.50789561]
[1747748736281,4.70363605,2474.2,2474.1,34.27218213]
[1747748736480,4.70363605,2474.2,2474.1,37.47998213]
[1747748736879,0.661354,2474.2,2474.1,37.47998213]
[1747748737080,0.661354,2474.2,2474.1,42.47998213]
[1747748737594,0.99973639,2474.4,2474.3,0.80806]
[1747748737897,0.99973639,2474.4,2474.3,1.10768581]
[1747748738081,0.99973639,2474.4,2474.3,6.10768581]
[1747748738288,0.80795,2474.7,2474.4,2.02005]
[1747748738591,1.47163104,2474.8,2474.7,0.80793]
[1747748738782,1.47163104,2474.8,2474.7,10.69662581]
[1747748738987,1.47163104,2474.8,2474.7,11.50455581]
[1747748739587,0.66372104,2474.8,2474.7,11.50438406]
[1747748739783,4.70600309,2474.8,2474.7,16.50438406]
[1747748739982,0.66372104,2474.8,2474.7,16.82771792]
[1747748740184,4.70600309,2474.8,2474.7,16.82771792]
[1747748740384,1.00163788,2475.0,2474.9,0.80787]
[1747748740679,1.00163788,2475.0,2474.9,9.31512406]
[1747748740883,1.74539851,2475.3,2475.2,0.80777]
[1747748741088,1.74539851,2475.3,2475.2,14.71102406]
[1747748741286,1.74539851,2475.3,2475.2,21.73083908]
[1747748741481,1.65061242,2475.5,2475.4,0.8077]
[1747748741687,0.80763,2475.7,2475.6,0.80763]
[1747748741885,1.97915632,2475.9,2475.5,2.0752]
[1747748742185,0.80774,2475.3,2475.2,23.53110386]
[1747748742384,0.80774,2475.3,2475.2,34.22418967]
[1747748745092,0.8077,2475.4,2475.3,2.0591]
[1747748745289,1.9932,2475.6,2475.3,2.0591]
[1747748745484,0.80769,2475.5,2475.4,0.8077]
[1747748745684,1.9932,2475.6,2475.3,2.86681]
[1747748745886,0.80769,2475.5,2475.4,0.80769]
[1747748746087,0.8077,2475.4,2475.3,2.86682]
[1747748746587,0.8077,2475.4,2475.3,2.019915]
[1747748746886,0.8077,2475.4,2475.3,2.827655]
[1747748747087,0.8077,2475.4,2475.3,4.819055]
[1747748747500,0.8077,2475.4,2475.3,4.011315]
[1747748747687,2.96138,2475.5,2475.4,0.8077]
[1747748747988,2.1537,2475.5,2475.4,0.8077]
[1747748748188,2.1537,2475.5,2475.4,2.827535]
[1747748748389,2.1537,2475.5,2475.4,4.818935]
[1747748748592,0.00605632,2475.9,2475.8,0.80757]
[1747748748795,0.00605632,2475.9,2475.8,14.70723265]
[1747748749003,0.00605632,2475.9,2475.8,16.72674265]
[1747748749698,0.00605632,2475.9,2475.8,16.72674346]
[1747748749899,0.00605632,2475.9,2475.8,21.72674346]
[1747748750501,2.1056,2476.9,2476.8,0.80725]
[1747748750690,2.91281,2476.9,2476.8,10.393]
[1747748750990,0.80731,2476.6,2476.5,22.69886346]
[1747748751188,0.80731,2476.6,2476.5,10.393]
[1747748751396,2.82625,2476.6,2476.5,10.393]
[1747748752101,0.80731,2476.6,2476.5,13.21925999]
[1747748752308,2.0161,2476.7,2476.6,0.80731]
[1747748752597,2.8234,2476.7,2476.6,0.80731]
[1747748752801,2.01928,2475.4,2474.8,3.2078]
[1747748752997,0.80793,2474.7,2474.2,3.2078]
[1747748753192,4.01573,2474.7,2474.0,10.391]
[1747748753386,0.80804,2474.4,2474.1,2.40157161]
[1747748753612,5.2278,2474.5,2474.2,10.391]
[1747748753899,0.80809,2474.2,2474.1,0.00605632]
[1747748754102,0.80809,2474.2,2474.1,10.39705632]
[1747748754395,0.80809,2474.2,2474.1,12.41795132]
[1747748754990,0.80809,2474.2,2474.1,12.41895132]
[1747748755601,2.82418,2474.3,2474.1,12.41895132]
[1747748755790,2.0161,2474.3,2474.2,4.01589]
[1747748755989,1.9949,2474.5,2474.2,5.3562]
[1747748756186,2.01995632,2474.6,2474.5,0.808]
[1747748756399,0.00605632,2474.6,2474.5,4.0158]
[1747748756591,0.00605632,2474.6,2474.5,8.18477]
[1747748756789,0.81401632,2474.6,2474.5,13.5998]
[1747748756996,2.83458632,2474.6,2474.5,10.392]
[1747748757201,0.00605632,2474.6,2474.5,12.41257]
[1747748757403,0.81401632,2474.6,2474.5,12.41257]
[1747748757605,0.80809,2474.2,2474.1,0.00605632]
[1747748758102,2.82898501,2474.2,2474.1,0.00605632]
[1747748759399,0.80808,2474.3,2474.1,2.83506132]
[1747748759596,4.1107,2474.5,2474.1,2.11365632]
[1747748759788,0.00605632,2474.6,2474.2,0.29848383]
[1747748759990,0.80803,2474.4,2474.3,10.393]
[1747748760194,1.978,2474.5,2474.3,10.393]
[1747748760402,1.978,2474.5,2474.4,17.30803]
[1747748760605,2.786,2474.5,2474.4,17.30803]
[1747748760797,2.786,2474.5,2474.3,11.20104]
[1747748761000,2.786,2474.5,2474.3,13.22173]
[1747748761206,2.786,2474.5,2474.3,29.72173]
[1747748761406,2.786,2474.5,2474.3,27.70104]
[1747748761608,6.01877,2474.5,2474.1,0.00605632]
[1747748761898,0.80809,2474.2,2474.1,10.40005632]
[1747748762305,10.22869501,2474.2,2472.6,3.2078]
[1747748762495,3.2078,2473.4,2472.9,0.80851]
[1747748762805,0.80852,2472.9,2472.8,17.20971144]
[1747748763313,2.0398,2473.0,2472.8,17.20971144]
[1747748763498,0.80852,2472.9,2472.8,17.20971144]
[1747748763909,2.83048,2472.9,2472.8,0.70971144]
[1747748764198,0.80875,2472.2,2471.9,1.81304056]
[1747748764393,4.01655,2472.2,2471.9,1.81304056]
[1747748764595,6.03908,2472.2,2471.9,1.81304056]
[1747748765213,0.80885,2471.9,2471.8,10.395]
[1747748765807,2.1445,2472.1,2471.8,12.417775]
[1747748766109,5.1931,2472.5,2471.9,2.1567]
[1747748766299,0.80863,2472.6,2472.2,0.80873]
[1747748766498,2.1445,2472.7,2472.3,13.3634]
[1747748766703,2.1445,2472.7,2472.4,11.20666]
[1747748766904,2.1445,2472.7,2472.5,18.528]
[1747748767202,4.1844,2473.0,2472.5,18.528]
[1747748767402,3.21385632,2473.1,2472.7,3.2078]
[1747748767609,3.21385632,2473.1,2472.8,4.1704]
[1747748767805,3.21385632,2473.1,2473.0,0.80849]
[1747748768209,4.1844,2474.0,2473.0,12.257595]
[1747748768412,3.2078,2474.1,2473.6,3.2078]
[1747748768710,3.2078,2474.1,2474.0,0.80816]
[1747748769003,1.65061242,2474.3,2474.2,0.8081]
[1747748769206,1.65061242,2474.3,2474.2,11.1621]
[1747748769406,1.65061242,2474.3,2474.2,13.182915]
[1747748769999,0.80811,2474.2,2474.0,2.84221632]
[1747748770200,2.844,2474.2,2474.1,10.354]
[1747748770603,4.86489501,2474.2,2474.1,10.354]
[1747748771107,2.0359,2474.2,2474.1,12.374895]
[1747748771304,4.01585,2474.4,2474.1,15.286415]
[1747748771506,0.80808,2474.3,2474.1,13.26552]
[1747748771707,2.0359,2474.3,2474.2,0.8081]
[1747748771902,3.2078,2474.4,2474.3,0.80806]
[1747748772102,0.00605632,2474.5,2474.4,0.80803]
[1747748772607,0.00605632,2474.5,2474.4,2.82868]
[1747748772807,3.2078,2475.4,2474.4,47.76365]
[1747748773105,3.2078,2475.7,2475.6,0.80764]
[1747748773405,3.2078,2475.7,2475.6,27.66164]
[1747748773603,3.2078,2475.7,2475.6,28.87367]
[1747748773806,0.00605632,2475.9,2475.6,28.87367]
[1747748774007,0.80761,2475.7,2475.6,27.66163]
[1747748774207,0.80758,2475.8,2475.7,0.80761]
[1747748774404,0.80761,2475.7,2475.6,27.66162]
[1747748774614,0.80761,2475.7,2475.6,26.854]
[1747748774803,0.80761,2475.7,2475.6,28.87367]
[1747748775108,2.0775,2475.8,2475.7,0.80761]
[1747748775303,4.90466,2475.8,2475.7,2.0795]
[1747748775607,2.88507,2475.8,2475.7,2.0795]
[1747748775808,0.00605632,2475.9,2475.8,0.80757]
[1747748776204,0.00605632,2475.9,2475.8,4.98328]
[1747748776399,0.81359632,2475.9,2475.8,4.17571]
[1747748776810,0.8076,2475.7,2475.6,16.5]
[1747748777004,4.0154,2475.7,2475.6,26.852]
[1747748777317,6.03507,2475.7,2475.6,26.852]
[1747748778306,0.80767,2475.5,2475.4,0.00605632]
[1747748778807,0.80787,2474.9,2474.5,5.6217235]
[1747748779007,3.2078,2474.9,2474.4,3.63036723]
[1747748779207,1.9596,2474.8,2474.5,10.35]
[1747748779411,3.2078,2475.4,2474.7,2.01984]
[1747748779617,2.74,2475.7,2475.3,0.80771]
[1747748779916,4.01549,2475.5,2475.4,10.35]
[1747748780109,0.8077,2475.4,2475.3,10.35605632]
[1747748780309,2.7673,2475.4,2475.3,10.35605632]
[1747748780505,2.7673,2475.4,2475.3,0.00605632]
[1747748780506,9.787215,2475.4,2475.3,0.00605632]
[1747748780713,9.787215,2475.4,2474.6,10.35]
[1747748780714,8.979515,2475.4,2474.6,10.35]
[1747748780916,3.2078,2474.7,2474.5,10.35]
[1747748781114,2.76756,2474.6,2474.5,10.35]
[1747748781515,0.80816,2474.0,2473.9,0.42256723]
[1747748781924,2.82922,2474.0,2473.9,0.42256723]
[1747748782111,0.80826,2473.7,2473.6,0.56650989]
[1747748782414,4.01606,2473.7,2473.6,0.56650989]
[1747748782615,11.037365,2473.7,2473.6,0.56650989]
[1747748782916,11.037365,2473.7,2473.0,2.0112]
[1747748782917,0.80842,2473.2,2473.1,10.35]
[1747748783321,2.830135,2473.2,2473.1,10.35]
[1747748783518,4.828335,2473.2,2473.1,10.35]
[1747748783821,2.80662,2473.2,2473.1,12.371715]
[1747748784519,1.9982,2473.2,2473.1,12.371715]
[1747748784722,0.80838,2473.4,2473.1,12.371715]
[1747748784920,3.2078,2473.7,2473.1,12.371715]
[1747748784921,0.80834,2473.5,2473.2,2.96061]
[1747748785216,0.80836,2473.4,2473.3,2.1522]
[1747748785718,4.01616,2473.4,2473.3,12.5042]
[1747748786114,0.80836,2473.4,2473.3,10.352]
[1747748786422,0.80855,2472.8,2472.7,2.1522]
[1747748786612,3.2078,2474.1,2472.7,2.44001769]
[1747748786810,2.0133,2473.9,2472.9,3.2078]
[1747748787017,3.2078,2473.7,2473.0,13.31267]
[1747748787217,2.02082,2473.5,2473.0,12.5042]
[1747748787620,2.0133,2473.6,2473.0,15.33431]
[1747748787822,3.2078,2473.4,2473.0,13.31268]
[1747748788011,3.2078,2473.7,2473.0,14.52579]
[1747748788223,3.2078,2473.7,2473.0,12.5042]
[1747748788627,3.2078,2473.5,2473.0,12.5042]
[1747748788928,0.80844,2473.2,2473.0,0.80848]
[1747748789120,0.80852,2472.9,2472.8,26.853]
[1747748789314,0.80852,2472.9,2472.8,12.3325]
[1747748789520,0.80852,2472.9,2472.8,14.35446]
[1747748789921,0.80852,2472.9,2472.8,12.3325]
[1747748790827,4.04331,2472.9,2472.5,10.354]
[1747748791132,0.80862,2472.6,2472.5,10.354]
[1747748791430,0.8086,2472.7,2472.5,13.19154]
[1747748791827,0.80862,2472.6,2472.5,12.3829]
[1747748792025,0.80862,2472.6,2472.5,10.354]
[1747748792225,4.820725,2472.6,2472.5,10.354]
[1747748792425,0.80881,2472.0,2471.9,51.10395451]
[1747748792624,0.80881,2472.0,2471.9,67.60395451]
[1747748792826,0.80881,2472.0,2471.9,69.6266495]
[1747748793224,0.80898,2471.5,2471.4,0.28238775]
[1747748793717,6.039885,2471.5,2471.4,0.28238775]
[1747748794631,11.039885,2471.5,2471.4,7.75e-06]
[1747748794827,6.039885,2471.5,2471.4,7.75e-06]
[1747748795033,5.230905,2471.5,2470.8,1.9917]
[1747748795223,0.0060687,2471.4,2471.3,0.80904]
[1747748795436,2.1511,2472.1,2472.0,0.80881]
[1747748795630,2.1511,2472.1,2472.0,12.378615]
[1747748795822,2.022615,2472.1,2471.4,3.2078]
[1747748796124,2.95993,2472.0,2471.7,0.80889]
[1747748796325,0.80885,2471.9,2471.6,2.80062]
[1747748796630,0.80885,2471.9,2471.5,10.356]
[1747748796631,2.1571687,2472.0,2471.7,1.9917]
[1747748796931,2.9659987,2472.0,2471.8,17.30887]
[1747748797322,0.0060687,2472.0,2471.9,2.0283]
[1747748797522,0.0060687,2472.0,2471.9,2.83715]
[1747748797730,3.2078,2472.6,2471.9,13.06764499]
[1747748798025,3.2078,2472.6,2472.0,10.329]
[1747748798329,2.89627,2472.5,2472.4,0.80868]
[1747748798532,2.0876,2472.5,2472.4,0.80868]
[1747748798726,5.3252,2473.1,2472.7,0.80856]
[1747748798919,0.80852,2472.9,2472.8,2.0283]
[1747748799125,0.80852,2472.9,2472.8,2.83683]
[1747748799322,0.80852,2472.9,2472.8,4.05026]
[1747748799929,5.3014687,2473.1,2472.8,4.05026]
[1747748800131,2.9021387,2473.1,2472.9,0.80852]
[1747748800324,0.0060687,2473.1,2473.0,2.0949]
[1747748800530,0.8145187,2473.1,2473.0,2.0949]
[1747748800730,6.0441137,2473.1,2473.0,2.0949]
[1747748800932,0.80852,2472.9,2472.8,0.0060687]
[1747748801132,0.80852,2472.9,2472.8,10.3350687]
[1747748801328,2.0013,2473.0,2472.8,10.3350687]
[1747748801632,2.8098,2473.0,2472.8,13.2385187]
[1747748801831,2.8098,2473.0,2472.8,12.4299687]
[1747748802031,2.8098,2473.0,2472.8,13.2385187]
[1747748802236,2.0013,2473.0,2472.8,12.4299687]
[1747748802433,2.0013,2473.0,2472.8,13.2384887]
[1747748802632,0.80852,2472.9,2472.8,0.0060687]
[1747748802832,0.80869,2472.4,2472.3,12.4239]
[1747748803038,4.01649,2472.4,2472.3,10.329]
[1747748803229,6.038855,2472.4,2472.3,10.329]
[1747748803835,0.80875,2472.2,2472.1,0.0060687]
[1747748804136,2.0785,2472.3,2472.1,0.8148387]
[1747748804441,2.88723,2472.3,2472.1,0.8148387]
[1747748804632,0.80875,2472.2,2472.1,0.0060687]
[1747748805137,4.90978,2472.2,2472.1,0.0060687]
[1747748805733,0.80865,2472.5,2472.4,0.80866]
[1747748805941,4.09999,2472.7,2472.1,2.8373687]
[1747748806140,0.80865,2472.5,2472.4,10.33]
[1747748806536,4.796035,2472.5,2472.4,10.33]
[1747748808238,0.80875,2472.2,2472.1,0.0060687]
[1747748808437,2.02214,2471.9,2471.5,0.28867996]
[1747748808643,3.2078,2471.6,2471.3,10.33]
[1747748808947,0.80904,2471.3,2471.2,0.42222495]
[1747748809142,4.01684,2471.3,2471.2,0.42222495]
[1747748809340,0.80902,2471.4,2471.2,0.42222495]
[1747748809646,0.0060687,2471.5,2471.4,0.80901]
[1747748809836,0.0060687,2471.5,2471.4,5.27595292]
[1747748810139,0.0060687,2471.5,2471.4,12.29905792]
[1747748810645,0.0060687,2471.5,2471.4,12.2994575]
[1747748810831,7.2225,2472.2,2471.4,11.4904475]
[1747748811035,5.2006,2472.2,2471.5,0.28924323]
[1747748811235,0.80883,2472.0,2471.6,2.41804323]
[1747748811438,3.2078,2472.2,2472.1,0.80878]
[1747748811644,4.01655,2472.2,2472.1,10.331]
[1747748811941,4.01655,2472.2,2472.1,11.4292944]
[1747748812140,3.2078,2472.2,2472.1,13.4518244]
[1747748812341,4.01655,2472.2,2472.1,13.4518244]
[1747748812643,3.2078,2472.2,2472.1,13.4518244]
[1747748812844,4.01655,2472.2,2472.1,13.45195281]
[1747748813144,0.80874,2472.3,2472.2,0.80875]
[1747748813343,0.80874,2472.3,2472.2,3.12759281]
[1747748813530,0.80874,2472.3,2472.2,4.66492943]
[1747748813730,2.86314,2472.3,2472.2,0.61327943]
[1747748813934,4.88559,2472.3,2472.2,0.32363662]
[1747748814239,9.88559,2472.3,2472.2,6.62e-06]
[1747748815140,0.80881,2472.0,2471.9,0.0060687]
[1747748815337,4.01661,2472.0,2471.9,0.0060687]
[1747748815531,11.039305,2472.0,2471.9,0.0060687]
[1747748816543,0.80894,2471.6,2471.5,0.21306207]
[1747748816742,0.80894,2471.6,2471.5,0.50292376]
[1747748816940,2.83196,2471.6,2471.5,0.50292376]
[1747748817242,4.93116,2471.6,2471.5,0.21306207]
[1747748817447,0.80914,2471.0,2470.9,0.42222495]
[1747748817739,4.01694,2471.0,2470.9,0.42222495]
[1747748817949,6.040455,2471.0,2470.9,0.42222495]
[1747748818146,0.80924,2470.7,2470.6,10.69643318]
[1747748818338,5.23093,2470.7,2469.9,13.5398]
[1747748818539,0.80937,2470.3,2470.2,0.28951231]
[1747748818749,3.2078,2470.4,2469.4,3.2078]
[1747748818945,3.2078,2470.7,2470.0,3.2078]
[1747748819242,0.0060687,2470.9,2470.8,0.80921]
[1747748819447,0.0060687,2470.9,2470.8,11.42990474]
[1747748819640,3.2078,2471.5,2470.8,22.87504974]
[1747748819839,3.2078,2471.5,2471.3,0.80903]
[1747748820146,4.01678,2471.5,2471.4,18.4684]
[1747748820341,0.80913,2471.1,2470.6,0.0060687]
[1747748820548,0.0060687,2471.1,2470.7,10.61987186]
[1747748820750,0.0060687,2471.1,2470.8,2.25627186]
[1747748820946,2.0896687,2471.1,2471.0,0.80914]
[1747748821137,0.8151787,2471.1,2471.0,4.27972265]
[1747748821453,0.0060687,2471.1,2471.0,2.31133612]
[1747748821744,0.80924,2470.7,2470.6,0.0060687]
[1747748821944,0.80924,2470.7,2469.8,2.86672]
[1747748821945,0.80948,2470.0,2469.8,2.86672]
[1747748822155,3.2078,2470.0,2469.9,0.28777798]
[1747748822449,6.041645,2470.0,2469.9,0.28777421]
[1747748822647,3.2078,2470.3,2469.9,2.02433]
[1747748822847,3.2078,2470.6,2470.5,0.8093]
[1747748823152,3.2138687,2471.1,2471.0,0.80914]
[1747748823453,3.2138687,2471.1,2471.0,13.45523453]
[1747748824156,3.2078,2472.0,2471.0,21.66300337]
[1747748824450,3.2078,2472.0,2471.5,0.80895]
[1747748824652,0.80892,2471.7,2471.6,12.60892163]
[1747748824951,2.0406,2471.9,2471.6,0.28762163]
[1747748825152,3.2078,2471.7,2471.1,1.9863]
[1747748825343,0.80914,2471.0,2470.9,10.335]
[1747748825644,0.80914,2471.0,2470.9,10.62265582]
[1747748825855,3.2078,2471.8,2471.3,0.80902]
[1747748826156,3.2078,2471.8,2471.4,10.335]
[1747748826337,3.2078,2471.8,2471.5,12.60891389]
[1747748826540,3.2078,2471.8,2471.5,12.3213]
[1747748826541,2.84953,2471.7,2471.5,12.3213]
[1747748826750,0.80894,2471.6,2471.5,12.3213]
[1747748826951,2.84954,2471.7,2471.5,15.44085478]
[1747748827150,3.2078,2471.8,2471.7,0.80891]
[1747748827449,3.2078,2471.8,2471.5,14.34428]
[1747748827646,0.80893,2471.7,2471.6,0.28759525]
[1747748827848,3.2078,2471.8,2471.7,2.87651]
[1747748828047,0.0060687,2472.0,2471.9,0.80885]
[1747748828248,0.0060687,2472.0,2471.9,1.09640575]
[1747748828451,0.8148787,2472.0,2471.9,2.31025074]
[1747748828755,0.80886,2471.9,2471.8,10.311]
[1747748829246,2.831635,2471.9,2471.8,10.311]
[1747748829552,4.772035,2471.9,2471.8,10.311]
[1747748829944,0.80901,2471.4,2471.3,10.59388919]
[1747748830149,0.80901,2471.4,2471.3,10.88161647]
[1747748830352,2.83219501,2471.4,2471.3,12.88121647]
[1747748830550,4.78319501,2471.4,2471.3,0.28388919]
[1747748831051,0.80917,2470.9,2470.8,0.574336]
[1747748831249,8.2078,2470.9,2470.2,0.56890004]
[1747748831456,0.80937,2470.3,2470.2,0.56890004]
[1747748831951,0.80929,2470.6,2470.2,19.09298504]
[1747748832156,0.0060687,2470.6,2470.5,0.8093]
[1747748832459,0.0060687,2470.6,2470.5,0.28804215]
[1747748832650,0.0060687,2470.6,2470.5,3.12118215]
[1747748832851,0.0060687,2470.6,2470.5,2.31188215]
[1747748833054,0.0060687,2470.6,2470.5,3.12118215]
[1747748833247,0.0060687,2470.6,2470.5,11.32898215]
[1747748833751,0.0060687,2470.6,2470.5,6.32898215]
[1747748833953,2.8391787,2470.6,2470.5,0.28804215]
[1747748834143,0.80934,2470.4,2470.3,1.9996]
[1747748834352,4.01715,2470.4,2470.2,10.312]
[1747748834653,0.80934,2470.4,2470.3,1.9498]
[1747748835152,0.80934,2470.4,2470.3,2.024005]
[1747748835355,0.80945,2470.1,2469.9,2.75929]
[1747748835552,0.80943,2470.2,2470.0,10.60079391]
[1747748835757,0.80944,2470.1,2470.0,10.313]
[1747748835952,0.80944,2470.1,2470.0,10.60079585]
[1747748836154,2.0688,2470.3,2470.0,12.62504585]
[1747748836350,0.8094,2470.2,2470.1,0.28779585]
[1747748836848,0.8094,2470.2,2470.1,2.31196585]
[1747748837256,0.80976,2469.1,2469.0,7.48e-06]
[1747748837442,4.01756,2469.1,2469.0,0.2878728]
[1747748837641,6.04263,2469.1,2469.0,7.48e-06]
[1747748839057,7.25731,2469.1,2468.5,27.62295]
[1747748839360,3.2078,2468.7,2467.8,3.2078]
[1747748839660,3.2078,2468.7,2467.0,0.98835454]
[1747748839661,3.2078,2468.4,2467.9,26.815]
[1747748839860,1.9899,2468.3,2468.0,10.315]
[1747748840262,3.2078,2468.7,2468.5,0.80996]
[1747748840563,3.2078,2468.7,2468.2,3.2078]
[1747748840864,3.2078,2468.7,2468.6,0.80993]
[1747748841161,0.80984,2468.9,2468.6,11.1249]
[1747748841362,3.2078,2469.0,2468.6,12.34027499]
[1747748841560,1.9899,2469.4,2468.9,3.2078]
[1747748841861,0.80968,2469.4,2469.1,0.80974]
[1747748842063,0.8157687,2469.3,2469.2,10.317]
[1747748842257,3.2138687,2469.3,2469.2,10.317]
[1747748842559,3.2138687,2469.3,2469.2,12.341905]
[1747748842748,4.0235687,2469.3,2469.2,10.317]
[1747748842951,3.2138687,2469.3,2469.2,12.341905]
[1747748843154,4.0235687,2469.3,2469.2,12.341905]
[1747748843349,3.2138687,2469.3,2469.2,12.341905]
[1747748843552,5.2387737,2469.3,2468.9,40.812]
[1747748843762,5.2387737,2469.3,2468.4,4.01777]
[1747748843763,0.80987,2468.8,2468.4,4.01777]
[1747748843957,0.80993,2468.6,2468.5,10.317]
[1747748844158,5.2748,2468.7,2468.5,10.317]
[1747748844460,5.2748,2468.7,2468.5,12.34244]
[1747748844763,5.2748,2469.1,2468.5,17.34244]
[1747748844961,5.2748,2469.1,2468.9,0.80981]
[1747748845158,6.08458,2469.1,2469.0,10.318]
[1747748845353,7.29927,2469.1,2468.3,0.81]
[1747748845665,0.81001,2468.4,2468.2,10.318]
[1747748845970,3.2078,2468.6,2468.2,10.318]
[1747748846467,2.02491,2468.5,2467.9,16.5]
[1747748846659,3.2078,2468.3,2468.0,10.318]
[1747748846859,2.76668,2468.5,2468.0,10.318]
[1747748847059,1.9567,2468.5,2468.0,10.318]
[1747748847459,1.9567,2468.5,2468.0,12.343725]
[1747748847659,1.9567,2468.5,2468.0,10.318]
[1747748847970,4.01786,2468.2,2468.1,10.319]
[1747748848467,5.23361,2468.2,2468.1,10.319]
[1747748848664,6.04367,2468.2,2468.1,10.319]
[1747748849373,3.2078,2468.2,2468.1,13.1549]
[1747748849563,3.2078,2468.2,2468.1,29.6549]
[1747748849765,3.2078,2468.2,2468.1,28.84481]
[1747748849960,3.2078,2468.6,2468.1,33.84481]
[1747748850155,3.2078,2468.9,2468.8,0.80986]
[1747748850465,5.233035,2468.9,2468.5,0.80995]
[1747748850657,2.94568,2468.8,2468.7,0.80989]
[1747748850860,3.2078,2468.9,2468.7,0.80989]
[1747748851057,0.80986,2468.8,2468.7,2.0028]
[1747748851261,3.2078,2468.9,2468.8,0.80986]
[1747748851760,3.2078,2468.9,2468.8,4.922295]
[1747748851966,3.2078,2468.9,2468.8,9.922295]